[Event "Titled Tuesday Blitz October 25 Late 2022"]
[White "Harish, Neeraj"]
[Black "Silva Rosas, Natalia"]
[WhiteFideId "30958130"]
[BlackFideId "3000575"]
[WhiteElo "1815"]
[BlackElo "1752"]
[Result "1-0"]
[Round "08"]
[TimeControl "180+1"]
[Date "2022.10.26"]
[WhiteClock "0:00:40"]
[BlackClock "0:00:01"]

1. c4 {[%clk 0:03:00]}  f5 {[%clk 0:02:57]} 2. Nc3 {[%clk 0:02:59]}  Nf6 {[%clk 0:02:58]} 3. Nf3 {[%clk 0:02:57]}  g6 {[%clk 0:02:58]} 4. d4 {[%clk 0:02:53]}  d6 {[%clk 0:02:56]} 5. g3 {[%clk 0:02:51]}  Bg7 {[%clk 0:02:56]} 6. Bg2 {[%clk 0:02:51]}  O-O {[%clk 0:02:57]} 7. O-O {[%clk 0:02:51]}  c6 {[%clk 0:02:57]} 8. d5 {[%clk 0:02:41]}  c5 {[%clk 0:02:51]} 9. Bd2 {[%clk 0:02:33]}  Na6 {[%clk 0:02:49]} 10. a3 {[%clk 0:02:32]}  Nc7 {[%clk 0:02:48]} 11. Rb1 {[%clk 0:02:27]}  Qe8 {[%clk 0:02:41]} 12. b4 {[%clk 0:02:27]}  cxb4 {[%clk 0:02:34]} 13. axb4 {[%clk 0:02:26]}  e5 {[%clk 0:02:27]} 14. dxe6 {[%clk 0:02:19]}  Bxe6 {[%clk 0:02:21]} 15. c5 {[%clk 0:02:11]}  d5 {[%clk 0:02:12]} 16. Bf4 {[%clk 0:02:05]}  Nb5 {[%clk 0:02:06]} 17. Nxb5 {[%clk 0:02:04]}  Qxb5 {[%clk 0:02:04]} 18. Nd4 {[%clk 0:02:05]}  Qd7 {[%clk 0:02:01]} 19. b5 {[%clk 0:02:01]}  Ne4 {[%clk 0:01:58]} 20. c6 {[%clk 0:01:53]}  Qf7 {[%clk 0:01:44]} 21. cxb7 {[%clk 0:01:45]}  Rab8 {[%clk 0:01:31]} 22. Bxb8 {[%clk 0:01:44]}  Rxb8 {[%clk 0:01:32]} 23. Nxe6 {[%clk 0:01:41]}  Qxe6 {[%clk 0:01:30]} 24. Qb3 {[%clk 0:01:19]}  Rxb7 {[%clk 0:01:25]} 25. Rbd1 {[%clk 0:01:15]}  Rd7 {[%clk 0:01:17]} 26. Bxe4 {[%clk 0:01:08]}  fxe4 {[%clk 0:01:10]} 27. Rd2 {[%clk 0:01:08]}  e3 {[%clk 0:01:08]} 28. Qxe3 {[%clk 0:01:04]}  Qf7 {[%clk 0:01:06]} 29. Qb3 {[%clk 0:00:59]}  Bh6 {[%clk 0:01:01]} 30. Rd3 {[%clk 0:00:58]}  Bg7 {[%clk 0:00:54]} 31. Rfd1 {[%clk 0:00:57]}  Qe8 {[%clk 0:00:31]} 32. Rxd5 {[%clk 0:00:51]}  Rxd5 {[%clk 0:00:22]} 33. Qxd5+ {[%clk 0:00:50]}  Kf8 {[%clk 0:00:20]} 34. Qd8 {[%clk 0:00:50]}  Qxd8 {[%clk 0:00:19]} 35. Rxd8+ {[%clk 0:00:51]}  Ke7 {[%clk 0:00:20]} 36. Ra8 {[%clk 0:00:51]}  Bd4 {[%clk 0:00:18]} 37. e3 {[%clk 0:00:51]}  Bb6 {[%clk 0:00:17]} 38. Kf1 {[%clk 0:00:52]}  Kd6 {[%clk 0:00:17]} 39. Rc8 {[%clk 0:00:51]}  h5 {[%clk 0:00:15]} 40. Ke2 {[%clk 0:00:51]}  g5 {[%clk 0:00:14]} 41. Kd3 {[%clk 0:00:50]}  Kd7 {[%clk 0:00:13]} 42. Rc4 {[%clk 0:00:48]}  Ke6 {[%clk 0:00:13]} 43. Ke4 {[%clk 0:00:48]}  Kd6 {[%clk 0:00:12]} 44. Rc6+ {[%clk 0:00:48]}  Kd7 {[%clk 0:00:11]} 45. Kf5 {[%clk 0:00:49]}  g4 {[%clk 0:00:09]} 46. Kg5 {[%clk 0:00:48]}  Ke7 {[%clk 0:00:08]} 47. Kxh5 {[%clk 0:00:49]}  Kd7 {[%clk 0:00:06]} 48. Kxg4 {[%clk 0:00:49]}  Bd8 {[%clk 0:00:03]} 49. h4 {[%clk 0:00:47]}  a5 {[%clk 0:00:03]} 50. h5 {[%clk 0:00:42]}  a4 {[%clk 0:00:03]} 51. Ra6 {[%clk 0:00:42]}  a3 {[%clk 0:00:02]} 52. Rxa3 {[%clk 0:00:42]}  Be7 {[%clk 0:00:02]} 53. Ra7+ {[%clk 0:00:42]}  Ke6 {[%clk 0:00:03]} 54. Rxe7+ {[%clk 0:00:42]}  Kf6 {[%clk 0:00:02]} 55. h6 {[%clk 0:00:43]}  Kg6 {[%clk 0:00:02]} 56. h7 {[%clk 0:00:40]}  Kh6 {[%clk 0:00:01]} 57. h8=Q+ {[%clk 0:00:40]}  Kg6 {[%clk 0:00:01]} 58. Qg7# {[%clk 0:00:40]} 1-0


[Site "https://www.chess.com"]

[Event "Titled Tuesday Blitz October 25 Late 2022"]
[White "Haszon, David"]
[Black "Yurtseven, Melih"]
[WhiteFideId "733610"]
[BlackFideId "6312160"]
[WhiteElo "2211"]
[BlackElo "2218"]
[Result "1-0"]
[Round "08"]
[TimeControl "180+1"]
[Date "2022.10.26"]
[WhiteClock "0:00:47"]
[BlackClock "0:00:02"]

1. d4 {[%clk 0:03:00]}  d5 {[%clk 0:02:51]} 2. Bf4 {[%clk 0:03:01]}  Nf6 {[%clk 0:02:45]} 3. e3 {[%clk 0:03:00]}  e6 {[%clk 0:02:45]} 4. Nf3 {[%clk 0:02:57]}  Bd6 {[%clk 0:02:46]} 5. Bg3 {[%clk 0:02:57]}  O-O {[%clk 0:02:42]} 6. c3 {[%clk 0:02:56]}  c5 {[%clk 0:02:41]} 7. Nbd2 {[%clk 0:02:55]}  Qc7 {[%clk 0:02:41]} 8. Bd3 {[%clk 0:02:47]}  Nbd7 {[%clk 0:02:40]} 9. Qe2 {[%clk 0:02:31]}  e5 {[%clk 0:02:35]} 10. dxe5 {[%clk 0:02:26]}  Nxe5 {[%clk 0:02:36]} 11. Nxe5 {[%clk 0:02:27]}  Bxe5 {[%clk 0:02:37]} 12. Nf3 {[%clk 0:02:26]}  Bxg3 {[%clk 0:02:27]} 13. hxg3 {[%clk 0:02:27]}  h6 {[%clk 0:02:27]} 14. O-O-O {[%clk 0:02:20]}  Bg4 {[%clk 0:02:25]} 15. Bc2 {[%clk 0:02:20]}  b5 {[%clk 0:02:13]} 16. Qxb5 {[%clk 0:02:14]}  Rab8 {[%clk 0:02:08]} 17. Qa4 {[%clk 0:02:14]}  Rb6 {[%clk 0:02:03]} 18. Rd2 {[%clk 0:02:09]}  Rfb8 {[%clk 0:02:01]} 19. Bb1 {[%clk 0:02:09]}  Qb7 {[%clk 0:01:46]} 20. Qa3 {[%clk 0:02:06]}  Bxf3 {[%clk 0:01:35]} 21. gxf3 {[%clk 0:02:06]}  d4 {[%clk 0:01:31]} 22. e4 {[%clk 0:02:04]}  Qc6 {[%clk 0:01:13]} 23. cxd4 {[%clk 0:01:47]}  cxd4+ {[%clk 0:01:05]} 24. Kd1 {[%clk 0:01:47]}  Rc8 {[%clk 0:00:56]} 25. Rc2 {[%clk 0:01:37]}  Qb7 {[%clk 0:00:55]} 26. Rxc8+ {[%clk 0:01:35]}  Qxc8 {[%clk 0:00:56]} 27. Kd2 {[%clk 0:01:29]}  Qb8 {[%clk 0:00:48]} 28. b3 {[%clk 0:01:27]}  Nd7 {[%clk 0:00:43]} 29. Rc1 {[%clk 0:01:17]}  Ne5 {[%clk 0:00:40]} 30. f4 {[%clk 0:01:17]}  Ng4 {[%clk 0:00:36]} 31. Qc5 {[%clk 0:00:54]}  Nxf2 {[%clk 0:00:11]} 32. Qc8+ {[%clk 0:00:54]}  Qxc8 {[%clk 0:00:06]} 33. Rxc8+ {[%clk 0:00:55]}  Kh7 {[%clk 0:00:07]} 34. Rc7 {[%clk 0:00:54]}  Kg8 {[%clk 0:00:03]} 35. e5 {[%clk 0:00:51]}  g6 {[%clk 0:00:02]} 36. Rxa7 {[%clk 0:00:51]}  h5 {[%clk 0:00:02]} 37. Bd3 {[%clk 0:00:47]} 1-0


[Site "https://www.chess.com"]

[Event "Titled Tuesday Blitz October 25 Late 2022"]
[White "Jaferian, Koosha"]
[Black "Przybylski, Wojciech"]
[WhiteFideId "12507440"]
[BlackFideId "1117599"]
[WhiteElo "2127"]
[BlackElo "2221"]
[Result "1-0"]
[Round "08"]
[TimeControl "180+1"]
[Date "2022.10.26"]
[WhiteClock "0:01:27"]
[BlackClock "0:01:13"]

1. e4 {[%clk 0:03:00]}  c5 {[%clk 0:02:41]} 2. Nf3 {[%clk 0:03:00]}  e6 {[%clk 0:02:41]} 3. g3 {[%clk 0:03:00]}  Nc6 {[%clk 0:02:38]} 4. Bg2 {[%clk 0:03:00]}  Nf6 {[%clk 0:02:36]} 5. Nc3 {[%clk 0:02:59]}  d6 {[%clk 0:02:35]} 6. O-O {[%clk 0:02:57]}  Be7 {[%clk 0:02:35]} 7. d4 {[%clk 0:02:57]}  cxd4 {[%clk 0:02:35]} 8. Nxd4 {[%clk 0:02:58]}  O-O {[%clk 0:02:33]} 9. Be3 {[%clk 0:02:55]}  a6 {[%clk 0:02:31]} 10. f4 {[%clk 0:02:51]}  e5 {[%clk 0:02:26]} 11. Nxc6 {[%clk 0:02:43]}  bxc6 {[%clk 0:02:25]} 12. f5 {[%clk 0:02:44]}  Rb8 {[%clk 0:02:21]} 13. b3 {[%clk 0:02:39]}  Qa5 {[%clk 0:02:19]} 14. Na4 {[%clk 0:02:32]}  d5 {[%clk 0:02:11]} 15. Qe1 {[%clk 0:02:05]}  Bb4 {[%clk 0:01:39]} 16. c3 {[%clk 0:02:01]}  Be7 {[%clk 0:01:39]} 17. Bg5 {[%clk 0:01:48]}  Qc7 {[%clk 0:01:21]} 18. Bxf6 {[%clk 0:01:38]}  Bxf6 {[%clk 0:01:21]} 19. exd5 {[%clk 0:01:39]}  cxd5 {[%clk 0:01:20]} 20. Bxd5 {[%clk 0:01:40]}  e4 {[%clk 0:01:15]} 21. Qxe4 {[%clk 0:01:32]}  Re8 {[%clk 0:01:13]} 22. Qxe8# {[%clk 0:01:27]} 1-0


[Site "https://www.chess.com"]

[Event "Titled Tuesday Blitz October 25 Late 2022"]
[White "Jimenez Almeida, Luis David"]
[Black "Faizrakhmanov, Ramil"]
[WhiteFideId "22242244"]
[BlackFideId "24103209"]
[WhiteElo "2158"]
[BlackElo "2421"]
[Result "1/2-1/2"]
[Round "08"]
[TimeControl "180+1"]
[Date "2022.10.26"]
[WhiteClock "0:00:07"]
[BlackClock "0:00:31"]

1. e4 {[%clk 0:03:00]}  c6 {[%clk 0:03:00]} 2. Nc3 {[%clk 0:02:56]}  d5 {[%clk 0:03:01]} 3. Qf3 {[%clk 0:02:56]}  e6 {[%clk 0:02:57]} 4. Nh3 {[%clk 0:02:55]}  Nf6 {[%clk 0:02:56]} 5. e5 {[%clk 0:02:52]}  Nfd7 {[%clk 0:02:56]} 6. d4 {[%clk 0:02:51]}  Be7 {[%clk 0:02:56]} 7. Bf4 {[%clk 0:02:45]}  c5 {[%clk 0:02:55]} 8. dxc5 {[%clk 0:02:43]}  Nc6 {[%clk 0:02:52]} 9. Qg3 {[%clk 0:02:43]}  Rg8 {[%clk 0:02:45]} 10. Bd3 {[%clk 0:02:41]}  g6 {[%clk 0:02:35]} 11. a3 {[%clk 0:02:38]}  Nxc5 {[%clk 0:02:34]} 12. Rd1 {[%clk 0:02:30]}  a6 {[%clk 0:02:33]} 13. O-O {[%clk 0:02:27]}  b5 {[%clk 0:02:23]} 14. Ng5 {[%clk 0:02:24]}  h5 {[%clk 0:02:19]} 15. Nh7 {[%clk 0:02:15]}  Bb7 {[%clk 0:02:17]} 16. Rfe1 {[%clk 0:02:11]}  Nxd3 {[%clk 0:01:58]} 17. Rxd3 {[%clk 0:02:09]}  Qb6 {[%clk 0:01:57]} 18. Nf6+ {[%clk 0:01:26]}  Bxf6 {[%clk 0:01:56]} 19. exf6 {[%clk 0:01:27]}  O-O-O {[%clk 0:01:56]} 20. Be5 {[%clk 0:01:24]}  Nxe5 {[%clk 0:01:55]} 21. Qxe5 {[%clk 0:01:23]}  Qc7 {[%clk 0:01:55]} 22. f4 {[%clk 0:01:13]}  Rd6 {[%clk 0:01:50]} 23. Ne2 {[%clk 0:01:12]}  Kb8 {[%clk 0:01:40]} 24. Rc3 {[%clk 0:01:09]}  Rc6 {[%clk 0:01:39]} 25. Qxc7+ {[%clk 0:01:07]}  Kxc7 {[%clk 0:01:38]} 26. Rxc6+ {[%clk 0:01:06]}  Bxc6 {[%clk 0:01:39]} 27. Nd4 {[%clk 0:01:05]}  Bd7 {[%clk 0:01:37]} 28. Kf2 {[%clk 0:01:03]}  Kd6 {[%clk 0:01:36]} 29. Nf3 {[%clk 0:01:00]}  Rc8 {[%clk 0:01:32]} 30. c3 {[%clk 0:01:00]}  a5 {[%clk 0:01:32]} 31. Ng5 {[%clk 0:01:00]}  Be8 {[%clk 0:01:32]} 32. h3 {[%clk 0:00:44]}  b4 {[%clk 0:01:31]} 33. axb4 {[%clk 0:00:44]}  axb4 {[%clk 0:01:31]} 34. Re3 {[%clk 0:00:44]}  bxc3 {[%clk 0:01:30]} 35. bxc3 {[%clk 0:00:45]}  Rc4 {[%clk 0:01:25]} 36. Kf3 {[%clk 0:00:43]}  Rc7 {[%clk 0:01:21]} 37. g4 {[%clk 0:00:42]}  hxg4+ {[%clk 0:01:22]} 38. hxg4 {[%clk 0:00:43]}  Rc4 {[%clk 0:01:18]} 39. Nh3 {[%clk 0:00:42]}  Bc6 {[%clk 0:01:17]} 40. Kg3 {[%clk 0:00:38]}  Kc5 {[%clk 0:01:12]} 41. Ng5 {[%clk 0:00:38]}  Be8 {[%clk 0:01:13]} 42. f5 {[%clk 0:00:35]}  gxf5 {[%clk 0:01:10]} 43. gxf5 {[%clk 0:00:35]}  d4 {[%clk 0:01:05]} 44. cxd4+ {[%clk 0:00:34]}  Kxd4 {[%clk 0:01:04]} 45. Re4+ {[%clk 0:00:33]}  Kd5 {[%clk 0:01:04]} 46. Rxc4 {[%clk 0:00:26]}  Kxc4 {[%clk 0:01:04]} 47. fxe6 {[%clk 0:00:22]}  fxe6 {[%clk 0:01:04]} 48. Nxe6 {[%clk 0:00:20]}  Bf7 {[%clk 0:00:49]} 49. Nf4 {[%clk 0:00:19]}  Kd4 {[%clk 0:00:45]} 50. Kg4 {[%clk 0:00:19]}  Ke5 {[%clk 0:00:42]} 51. Kg5 {[%clk 0:00:20]}  Be8 {[%clk 0:00:41]} 52. Nd3+ {[%clk 0:00:20]}  Ke6 {[%clk 0:00:40]} 53. Nc5+ {[%clk 0:00:20]}  Kf7 {[%clk 0:00:39]} 54. Kf5 {[%clk 0:00:20]}  Bb5 {[%clk 0:00:38]} 55. Ke5 {[%clk 0:00:21]}  Bc4 {[%clk 0:00:37]} 56. Ne4 {[%clk 0:00:21]}  Ba2 {[%clk 0:00:36]} 57. Ng5+ {[%clk 0:00:21]}  Kf8 {[%clk 0:00:36]} 58. Kf5 {[%clk 0:00:18]}  Bb1+ {[%clk 0:00:36]} 59. Ke5 {[%clk 0:00:19]}  Ba2 {[%clk 0:00:37]} 60. Nf3 {[%clk 0:00:19]}  Bb1 {[%clk 0:00:36]} 61. Nd4 {[%clk 0:00:18]}  Ba2 {[%clk 0:00:36]} 62. Nf5 {[%clk 0:00:19]}  Bb3 {[%clk 0:00:36]} 63. Ne7 {[%clk 0:00:19]}  Ba2 {[%clk 0:00:36]} 64. Kf5 {[%clk 0:00:17]}  Bb1+ {[%clk 0:00:35]} 65. Kg5 {[%clk 0:00:17]}  Bc2 {[%clk 0:00:36]} 66. Nd5 {[%clk 0:00:13]}  Kf7 {[%clk 0:00:35]} 67. Nf4 {[%clk 0:00:13]}  Bb1 {[%clk 0:00:34]} 68. Ng2 {[%clk 0:00:12]}  Bc2 {[%clk 0:00:34]} 69. Ne3 {[%clk 0:00:12]}  Bb1 {[%clk 0:00:34]} 70. Ng4 {[%clk 0:00:13]}  Bc2 {[%clk 0:00:32]} 71. Ne5+ {[%clk 0:00:12]}  Kf8 {[%clk 0:00:33]} 72. Kf4 {[%clk 0:00:10]}  Bb1 {[%clk 0:00:33]} 73. Ke3 {[%clk 0:00:10]}  Bc2 {[%clk 0:00:32]} 74. Kd4 {[%clk 0:00:10]}  Bb1 {[%clk 0:00:32]} 75. Kd5 {[%clk 0:00:10]}  Ba2+ {[%clk 0:00:32]} 76. Kd6 {[%clk 0:00:11]}  Bb3 {[%clk 0:00:31]} 77. Kc5 {[%clk 0:00:05]}  Ba2 {[%clk 0:00:31]} 78. Kd6 {[%clk 0:00:05]}  Bb3 {[%clk 0:00:31]} 79. Kc5 {[%clk 0:00:06]}  Ba2 {[%clk 0:00:31]} 80. Kd6 {[%clk 0:00:07]} 1/2-1/2


[Site "https://www.chess.com"]

[Event "Titled Tuesday Blitz October 25 Late 2022"]
[White "Jimenez Fernandez, Rebeca"]
[Black "Buchenau, Frank"]
[WhiteFideId "32070934"]
[BlackFideId "4604350"]
[WhiteElo "1946"]
[BlackElo "2157"]
[Result "1-0"]
[Round "08"]
[TimeControl "180+1"]
[Date "2022.10.26"]
[WhiteClock "0:01:42"]
[BlackClock "0:00:48"]

1. e4 {[%clk 0:03:00]}  e6 {[%clk 0:02:59]} 2. d3 {[%clk 0:03:00]}  d5 {[%clk 0:03:00]} 3. Nd2 {[%clk 0:03:01]}  Nf6 {[%clk 0:03:00]} 4. g3 {[%clk 0:03:02]}  b6 {[%clk 0:02:54]} 5. Ngf3 {[%clk 0:03:02]}  Bb7 {[%clk 0:02:48]} 6. e5 {[%clk 0:03:02]}  Nfd7 {[%clk 0:02:46]} 7. d4 {[%clk 0:03:02]}  c5 {[%clk 0:02:45]} 8. c3 {[%clk 0:03:02]}  Be7 {[%clk 0:02:44]} 9. Bd3 {[%clk 0:03:01]}  Ba6 {[%clk 0:02:44]} 10. Bc2 {[%clk 0:02:58]}  Nc6 {[%clk 0:02:43]} 11. Nf1 {[%clk 0:02:54]}  O-O {[%clk 0:02:37]} 12. h4 {[%clk 0:02:54]}  f6 {[%clk 0:02:33]} 13. Bxh7+ {[%clk 0:02:40]}  Kxh7 {[%clk 0:02:32]} 14. Ng5+ {[%clk 0:02:41]}  fxg5 {[%clk 0:02:06]} 15. hxg5+ {[%clk 0:02:40]}  Kg8 {[%clk 0:02:04]} 16. Rh8+ {[%clk 0:01:43]}  Kxh8 {[%clk 0:02:01]} 17. Qh5+ {[%clk 0:01:44]}  Kg8 {[%clk 0:01:58]} 18. g6 {[%clk 0:01:44]}  Nf6 {[%clk 0:00:48]} 19. exf6 {[%clk 0:01:43]}  Rxf6 {[%clk 0:00:48]} 20. Qh7+ {[%clk 0:01:42]}  Kf8 {[%clk 0:00:48]} 21. Qh8# {[%clk 0:01:42]} 1-0


[Site "https://www.chess.com"]

[Event "Titled Tuesday Blitz October 25 Late 2022"]
[White "Karacsonyi, Gellert"]
[Black "Boskovic, Drasko"]
[WhiteFideId "764620"]
[BlackFideId "927368"]
[WhiteElo "2308"]
[BlackElo "2388"]
[Result "1-0"]
[Round "08"]
[TimeControl "180+1"]
[Date "2022.10.26"]
[WhiteClock "0:00:48"]
[BlackClock "0:00:25"]

1. e4 {[%clk 0:03:00]}  c5 {[%clk 0:02:59]} 2. Nf3 {[%clk 0:03:00]}  Nc6 {[%clk 0:02:59]} 3. d4 {[%clk 0:03:00]}  cxd4 {[%clk 0:03:00]} 4. Nxd4 {[%clk 0:03:00]}  Nf6 {[%clk 0:03:01]} 5. Nc3 {[%clk 0:03:00]}  h5 {[%clk 0:03:02]} 6. Be2 {[%clk 0:02:59]}  g6 {[%clk 0:03:01]} 7. O-O {[%clk 0:02:58]}  Bg7 {[%clk 0:03:01]} 8. h3 {[%clk 0:02:56]}  O-O {[%clk 0:03:02]} 9. Be3 {[%clk 0:02:55]}  d5 {[%clk 0:03:00]} 10. Nxc6 {[%clk 0:02:43]}  bxc6 {[%clk 0:03:00]} 11. e5 {[%clk 0:02:44]}  Nh7 {[%clk 0:02:57]} 12. f4 {[%clk 0:02:43]}  f6 {[%clk 0:02:35]} 13. Bd4 {[%clk 0:02:37]}  Bf5 {[%clk 0:02:32]} 14. Bd3 {[%clk 0:02:34]}  Bxd3 {[%clk 0:02:32]} 15. Qxd3 {[%clk 0:02:35]}  f5 {[%clk 0:02:22]} 16. Qg3 {[%clk 0:02:32]}  Qe8 {[%clk 0:02:18]} 17. Na4 {[%clk 0:02:32]}  e6 {[%clk 0:02:16]} 18. Nc5 {[%clk 0:02:28]}  Qf7 {[%clk 0:02:15]} 19. Rf3 {[%clk 0:02:24]}  Rfb8 {[%clk 0:02:13]} 20. Rb3 {[%clk 0:02:19]}  Bf8 {[%clk 0:02:12]} 21. Nd3 {[%clk 0:02:13]}  a5 {[%clk 0:02:07]} 22. Qe3 {[%clk 0:02:01]}  Be7 {[%clk 0:02:03]} 23. Ba7 {[%clk 0:01:54]}  Rb5 {[%clk 0:02:00]} 24. a4 {[%clk 0:01:47]}  Rxb3 {[%clk 0:01:57]} 25. cxb3 {[%clk 0:01:48]}  g5 {[%clk 0:01:55]} 26. Rc1 {[%clk 0:01:39]}  gxf4 {[%clk 0:01:54]} 27. Nxf4 {[%clk 0:01:38]}  Bg5 {[%clk 0:01:50]} 28. Bd4 {[%clk 0:01:35]}  Rb8 {[%clk 0:01:47]} 29. Rxc6 {[%clk 0:01:32]}  Nf8 {[%clk 0:01:34]} 30. Qg3 {[%clk 0:01:31]}  Qg7 {[%clk 0:01:27]} 31. Nxe6 {[%clk 0:01:27]}  Nxe6 {[%clk 0:01:28]} 32. Rxe6 {[%clk 0:01:27]}  h4 {[%clk 0:01:28]} 33. Qf3 {[%clk 0:01:24]}  Rc8 {[%clk 0:01:00]} 34. Qxf5 {[%clk 0:01:03]}  Rc1+ {[%clk 0:00:38]} 35. Kh2 {[%clk 0:01:02]}  Bf6 {[%clk 0:00:27]} 36. Re8+ {[%clk 0:00:58]}  Kf7 {[%clk 0:00:26]} 37. Qe6+ {[%clk 0:00:52]}  Kg6 {[%clk 0:00:25]} 38. Qxf6+ {[%clk 0:00:48]} 1-0


[Site "https://www.chess.com"]

[Event "Titled Tuesday Blitz October 25 Late 2022"]
[White "Kisic, Bozidar"]
[Black "Rosenberg, Evan S"]
[WhiteFideId "16500350"]
[BlackFideId "2019299"]
[WhiteElo "2233"]
[BlackElo "2371"]
[Result "0-1"]
[Round "08"]
[TimeControl "180+1"]
[Date "2022.10.26"]
[WhiteClock "0:00:03"]
[BlackClock "0:00:03"]

1. d4 {[%clk 0:02:56]}  d5 {[%clk 0:02:57]} 2. Bf4 {[%clk 0:02:55]}  Nf6 {[%clk 0:02:50]} 3. Nc3 {[%clk 0:02:55]}  a6 {[%clk 0:02:48]} 4. Qd3 {[%clk 0:02:54]}  e6 {[%clk 0:02:41]} 5. O-O-O {[%clk 0:02:46]}  c5 {[%clk 0:02:25]} 6. dxc5 {[%clk 0:02:18]}  Bxc5 {[%clk 0:02:22]} 7. e4 {[%clk 0:02:18]}  O-O {[%clk 0:02:20]} 8. e5 {[%clk 0:02:15]}  Ng4 {[%clk 0:02:02]} 9. Nh3 {[%clk 0:02:12]}  Nc6 {[%clk 0:02:01]} 10. Qg3 {[%clk 0:02:02]}  f5 {[%clk 0:01:42]} 11. exf6 {[%clk 0:01:58]}  Nxf6 {[%clk 0:01:41]} 12. Bd3 {[%clk 0:01:56]}  Nh5 {[%clk 0:01:37]} 13. Qg4 {[%clk 0:01:39]}  Nxf4 {[%clk 0:01:33]} 14. Nxf4 {[%clk 0:01:39]}  e5 {[%clk 0:01:19]} 15. Ne6 {[%clk 0:01:16]}  Qf6 {[%clk 0:01:18]} 16. Bxh7+ {[%clk 0:01:07]}  Kxh7 {[%clk 0:01:13]} 17. Qh5+ {[%clk 0:01:07]}  Qh6+ {[%clk 0:00:59]} 18. Qxh6+ {[%clk 0:01:07]}  Kxh6 {[%clk 0:00:50]} 19. Nxc5 {[%clk 0:01:08]}  d4 {[%clk 0:00:44]} 20. N3e4 {[%clk 0:01:04]}  b6 {[%clk 0:00:44]} 21. Na4 {[%clk 0:01:02]}  Bf5 {[%clk 0:00:39]} 22. Rde1 {[%clk 0:00:59]}  Bxe4 {[%clk 0:00:38]} 23. Rxe4 {[%clk 0:00:59]}  Rxf2 {[%clk 0:00:38]} 24. Nxb6 {[%clk 0:00:58]}  Rb8 {[%clk 0:00:31]} 25. Nd7 {[%clk 0:00:53]}  Rc8 {[%clk 0:00:31]} 26. Nb6 {[%clk 0:00:46]}  Rc7 {[%clk 0:00:27]} 27. Nd5 {[%clk 0:00:46]}  Rc8 {[%clk 0:00:25]} 28. Rhe1 {[%clk 0:00:34]}  Rxg2 {[%clk 0:00:21]} 29. R4e2 {[%clk 0:00:34]}  Rxe2 {[%clk 0:00:18]} 30. Rxe2 {[%clk 0:00:35]}  d3 {[%clk 0:00:18]} 31. Rd2 {[%clk 0:00:27]}  Nd4 {[%clk 0:00:15]} 32. Ne3 {[%clk 0:00:25]}  Nxc2 {[%clk 0:00:13]} 33. Nxc2 {[%clk 0:00:25]}  dxc2 {[%clk 0:00:13]} 34. Rxc2 {[%clk 0:00:22]}  Rd8 {[%clk 0:00:12]} 35. Rc6+ {[%clk 0:00:22]}  Kh5 {[%clk 0:00:12]} 36. Rxa6 {[%clk 0:00:22]}  e4 {[%clk 0:00:12]} 37. Ra3 {[%clk 0:00:20]}  Kg4 {[%clk 0:00:09]} 38. Rg3+ {[%clk 0:00:20]}  Kf4 {[%clk 0:00:09]} 39. Rxg7 {[%clk 0:00:20]}  e3 {[%clk 0:00:10]} 40. Rf7+ {[%clk 0:00:21]}  Ke4 {[%clk 0:00:09]} 41. b4 {[%clk 0:00:18]}  e2 {[%clk 0:00:09]} 42. Re7+ {[%clk 0:00:18]}  Kd3 {[%clk 0:00:08]} 43. b5 {[%clk 0:00:14]}  Rc8+ {[%clk 0:00:06]} 44. Kb1 {[%clk 0:00:14]}  Kd2 {[%clk 0:00:05]} 45. a4 {[%clk 0:00:12]}  e1=Q+ {[%clk 0:00:04]} 46. Rxe1 {[%clk 0:00:13]}  Kxe1 {[%clk 0:00:05]} 47. Kb2 {[%clk 0:00:12]}  Kd2 {[%clk 0:00:05]} 48. Kb3 {[%clk 0:00:12]}  Kd3 {[%clk 0:00:05]} 49. a5 {[%clk 0:00:08]}  Kd4 {[%clk 0:00:03]} 50. b6 {[%clk 0:00:03]}  Kc5 {[%clk 0:00:03]} 51. Ka4 {[%clk 0:00:04]}  Rh8 {[%clk 0:00:02]} 52. b7 {[%clk 0:00:04]}  Kc6 {[%clk 0:00:01]} 53. a6 {[%clk 0:00:04]}  Kb6 {[%clk 0:00:02]} 54. a7 {[%clk 0:00:03]}  Kxa7 {[%clk 0:00:02]} 55. Kb5 {[%clk 0:00:03]}  Kxb7 {[%clk 0:00:03]} 0-1


[Site "https://www.chess.com"]

[Event "Titled Tuesday Blitz October 25 Late 2022"]
[White "Korobov, Anton"]
[Black "Djordjevic, Vuk"]
[WhiteFideId "14105730"]
[BlackFideId "902098"]
[WhiteElo "2635"]
[BlackElo "2456"]
[Result "1-0"]
[Round "08"]
[TimeControl "180+1"]
[Date "2022.10.26"]
[WhiteClock "0:00:09"]
[BlackClock "0:00:01"]

1. d4 {[%clk 0:03:00]}  Nf6 {[%clk 0:02:59]} 2. c4 {[%clk 0:03:00]}  e6 {[%clk 0:03:00]} 3. Nc3 {[%clk 0:03:00]}  Bb4 {[%clk 0:03:00]} 4. e3 {[%clk 0:03:01]}  O-O {[%clk 0:03:00]} 5. Bd3 {[%clk 0:03:01]}  d5 {[%clk 0:03:01]} 6. Nf3 {[%clk 0:03:02]}  c5 {[%clk 0:03:01]} 7. O-O {[%clk 0:03:02]}  Nc6 {[%clk 0:03:01]} 8. a3 {[%clk 0:03:02]}  Bxc3 {[%clk 0:03:01]} 9. bxc3 {[%clk 0:03:03]}  b6 {[%clk 0:02:56]} 10. cxd5 {[%clk 0:03:03]}  exd5 {[%clk 0:02:50]} 11. Ne5 {[%clk 0:03:02]}  Bb7 {[%clk 0:02:49]} 12. Nxc6 {[%clk 0:03:02]}  Bxc6 {[%clk 0:02:49]} 13. f3 {[%clk 0:03:02]}  Re8 {[%clk 0:02:46]} 14. Qe1 {[%clk 0:03:02]}  Qd7 {[%clk 0:02:30]} 15. Rb1 {[%clk 0:03:02]}  Re7 {[%clk 0:02:28]} 16. Qh4 {[%clk 0:03:00]}  c4 {[%clk 0:02:20]} 17. Be2 {[%clk 0:02:56]}  Rae8 {[%clk 0:02:09]} 18. Rb2 {[%clk 0:02:38]}  h6 {[%clk 0:01:47]} 19. g4 {[%clk 0:02:34]}  Nh7 {[%clk 0:01:46]} 20. Qg3 {[%clk 0:02:27]}  f5 {[%clk 0:01:38]} 21. gxf5 {[%clk 0:02:16]}  Qxf5 {[%clk 0:01:37]} 22. Bd1 {[%clk 0:01:40]}  Re6 {[%clk 0:01:08]} 23. Rg2 {[%clk 0:01:37]}  Qf7 {[%clk 0:01:03]} 24. Bc2 {[%clk 0:01:34]}  Nf8 {[%clk 0:01:00]} 25. Kh1 {[%clk 0:01:05]}  Rf6 {[%clk 0:00:57]} 26. a4 {[%clk 0:00:49]}  Bd7 {[%clk 0:00:53]} 27. Rfg1 {[%clk 0:00:44]}  Re7 {[%clk 0:00:39]} 28. Bd1 {[%clk 0:00:43]}  Rg6 {[%clk 0:00:25]} 29. Qh4 {[%clk 0:00:39]}  Rxg2 {[%clk 0:00:25]} 30. Rxg2 {[%clk 0:00:40]}  Re6 {[%clk 0:00:20]} 31. Kg1 {[%clk 0:00:33]}  Rf6 {[%clk 0:00:20]} 32. Be2 {[%clk 0:00:30]}  Ng6 {[%clk 0:00:13]} 33. Qg3 {[%clk 0:00:30]}  Bxa4 {[%clk 0:00:08]} 34. h4 {[%clk 0:00:27]}  Ne7 {[%clk 0:00:07]} 35. e4 {[%clk 0:00:27]}  Bc6 {[%clk 0:00:05]} 36. h5 {[%clk 0:00:26]}  dxe4 {[%clk 0:00:03]} 37. fxe4 {[%clk 0:00:22]}  Bxe4 {[%clk 0:00:03]} 38. Rh2 {[%clk 0:00:22]}  Nf5 {[%clk 0:00:03]} 39. Qg4 {[%clk 0:00:18]}  Bd3 {[%clk 0:00:03]} 40. Bf3 {[%clk 0:00:16]}  Ne7 {[%clk 0:00:03]} 41. Rf2 {[%clk 0:00:15]}  Bf5 {[%clk 0:00:02]} 42. Qg3 {[%clk 0:00:15]}  Be6 {[%clk 0:00:03]} 43. Ba3 {[%clk 0:00:10]}  Nf5 {[%clk 0:00:03]} 44. Qe5 {[%clk 0:00:10]}  Nh4 {[%clk 0:00:02]} 45. Be4 {[%clk 0:00:09]}  Rxf2 {[%clk 0:00:01]} 46. Qb8+ {[%clk 0:00:09]}  Qf8 {[%clk 0:00:01]} 47. Bxf8 {[%clk 0:00:09]}  Rxf8 {[%clk 0:00:02]} 48. Qe5 {[%clk 0:00:08]}  Bf7 {[%clk 0:00:02]} 49. d5 {[%clk 0:00:09]}  Be8 {[%clk 0:00:01]} 50. d6 {[%clk 0:00:09]}  Bd7 {[%clk 0:00:01]} 51. Qe7 {[%clk 0:00:09]}  Bf5 {[%clk 0:00:01]} 52. Bd5+ {[%clk 0:00:09]}  Kh8 {[%clk 0:00:01]} 53. Qxf8+ {[%clk 0:00:09]} 1-0


[Site "https://www.chess.com"]